fUST/lending_fUST_20250302
["ID","MTS","AMOUNT","RATE_DAILY","PERIOD"]
[354977605,1740852660872,-528.21,0.00026375,2]
[354977606,1740852660882,-309.950619,0.00026375,7]
[354977607,1740852660892,-151.0,0.00026375,7]
[354977608,1740852660902,-151.0,0.00026375,7]
[354977609,1740852660912,-563.87,0.00026375,2]
[354977610,1740852660921,-1833.10426,0.00026375,7]
[354977611,1740852660931,-1833.10426,0.00026375,7]
[354977612,1740852660941,-1010.478276,0.00026375,7]
[354977613,1740852660951,-511.68,0.00026375,2]
[354977614,1740852660960,-1010.478276,0.00026375,7]
[354977615,1740852660971,-151.0,0.00026375,7]
[354977616,1740852660980,-1108.85,0.00026375,2]
[354977617,1740852660990,-500.0,0.00026375,2]
[354977618,1740852661000,-472.064026,0.00026375,7]
[354977619,1740852661010,-151.0,0.00026375,7]
[354977620,1740852661019,-222.080022,0.00026375,7]
[354977621,1740852661029,-472.064026,0.00026375,7]
[354977622,1740852661039,-2700.33,0.00026375,2]
[354977623,1740852661049,-500.0,0.00026375,2]
[354977624,1740852661059,-222.080022,0.00026375,7]
[354977625,1740852661069,-500.0,0.00026375,2]
[354977626,1740852661078,-615.28,0.00026375,2]
[354977627,1740852661088,-920.77,0.00026375,2]
[354977628,1740852661099,-851.88,0.00026375,2]
[354977629,1740852661110,-190.23402,0.00026375,7]
[354977630,1740852661119,-500.0,0.00026375,2]
[354977631,1740852661129,-190.23402,0.00026375,7]
[354977632,1740852661140,-261.588615,0.00026375,7]
[354977633,1740852661149,-272.965252,0.00026375,7]
[354977634,1740852661159,-261.588615,0.00026375,7]
[354977635,1740852661169,-272.965252,0.00026375,7]
[354977636,1740852661178,-845.32,0.00026375,2]
[354977637,1740852661188,-500.0,0.00026375,2]
[354977638,1740852661198,-151.0,0.00026375,7]
[354977639,1740852661208,-151.0,0.00026375,7]
[354977640,1740852661219,-810.18,0.00026375,2]
[354977641,1740852661229,-267.628782,0.00026375,7]
[354977642,1740852661241,-267.628782,0.00026375,7]
[354977643,1740852661251,-1717.933302,0.00026375,7]
[354977644,1740852661261,-1717.933302,0.00026375,7]
[354977645,1740852661271,-1464.88,0.00026375,2]
[354977646,1740852661282,-1993.26,0.00026375,2]
[354977647,1740852661292,-500.0,0.00026375,2]
[354977648,1740852661302,-358.872943,0.00026375,7]
[354977649,1740852661312,-5511.42,0.00026375,2]
[354977650,1740852661325,-358.872943,0.00026375,7]
[354977651,1740852661335,-500.0,0.00026375,2]
[354977652,1740852661344,-464.318816,0.00026375,7]
[354977653,1740852661354,-435.544906,0.00026375,7]
[354977654,1740852661364,-464.318816,0.00026375,7]
[354977655,1740852661374,-435.544906,0.00026375,7]
[354977656,1740852661384,-695.75,0.00026375,2]
[354977657,1740852661394,-160.70743,0.00026376,7]
[354977658,1740852661490,-151.0,0.00026376,7]
[354977659,1740852661500,-500.0,0.00026376,2]
[354977660,1740852661511,-500.0,0.00026376,2]
[354977661,1740852661520,-500.0,0.00026376,2]
[354977662,1740852661530,-151.0,0.00026376,7]
[354977663,1740852661539,-151.0,0.00026376,7]
[354977664,1740852661549,-151.0,0.00026376,7]
[354977665,1740852661560,-151.0,0.00026376,7]
[354977666,1740852661571,-411.637381,0.00026376,7]
[354977667,1740852661580,-411.637381,0.00026376,7]
[354977668,1740852661591,-399.421272,0.00026376,7]
[354977669,1740852661601,-399.421272,0.00026376,7]
[354977670,1740852661611,-229.064736,0.00026376,7]
[354977671,1740852661620,-617.81,0.00026376,2]
[354977672,1740852661631,-500.0,0.00026376,2]
[354977673,1740852661640,-500.0,0.00026376,2]
[354977674,1740852661650,-500.0,0.00026376,2]
[354977675,1740852661660,-500.0,0.00026376,2]
[354977676,1740852661669,-519.48016072,0.00026376,2]
[354977677,1740852661679,-500.0,0.00026376,2]
[354977678,1740852661689,-500.0,0.00026376,2]
[354977679,1740852661699,-500.0,0.00026376,2]
[354977680,1740852661709,-1416.51,0.00026376,2]
[354977681,1740852661719,-1702.4,0.00026376,2]
[354977682,1740852661729,-688.69,0.00026376,2]
[354977683,1740852661738,-762.87,0.00026376,2]
[354977684,1740852661747,-621.62,0.00026376,2]
[354977685,1740852661757,-1528.54,0.00026376,2]
[354977686,1740852661766,-500.0,0.00026376,2]
[354977687,1740852661776,-500.0,0.00026376,2]
[354977688,1740852661785,-532.32,0.00026376,2]
[354977689,1740852661795,-1097.06,0.00026376,2]
[354977690,1740852661804,-1643.16,0.00026376,2]
[354977691,1740852661814,-755.0,0.000264,14]
[354977692,1740852661823,-151.0,0.0002657,7]
[354977693,1740852661832,-165.029516,0.00026572,7]
[354977694,1740852661841,-165.029516,0.00026572,7]
[354977695,1740852661850,-8763.1,0.00026645,2]
[354977696,1740852661861,-2704.83,0.00026645,2]
[354977697,1740852661871,-1000.0,0.00026645,5]
[354977698,1740852661881,-1061.28,0.00026645,2]
[354977699,1740852661890,-928.86,0.00026645,2]
[354977700,1740852661900,-901.34,0.00026645,2]
[354977701,1740852661909,-756.95,0.00026645,2]
[354977702,1740852661918,-1590.81,0.00026645,2]
[354977703,1740852661927,-500.0,0.00026646,2]
[354977704,1740852661936,-500.0,0.00026646,2]
[354977705,1740852661946,-1245.26,0.00026646,2]
[354977706,1740852661955,-500.0,0.00026646,2]
[354977707,1740852661965,-13114.62,0.00026646,2]
[354977708,1740852661974,-500.0,0.00026646,2]
[354977709,1740852661984,-6634.82,0.00026646,2]
[354977710,1740852661993,-4285.24,0.00026646,2]
[354977711,1740852662002,-5569.82,0.00026646,2]
[354977712,1740852662012,-1726.86,0.00026646,2]
[354977713,1740852662021,-500.0,0.00026646,2]
[354977714,1740852662031,-1264.87,0.00026646,2]
[354977715,1740852662040,-2964.03,0.00026646,2]
[354977716,1740852662050,-500.0,0.00026646,2]
[354977717,1740852662059,-2951.38,0.00026646,2]
[354977718,1740852662069,-500.0,0.00026646,2]
[354977719,1740852662078,-5269.69,0.00026646,2]
[354977720,1740852662088,-9493.32,0.00026646,2]
[354977721,1740852662098,-549.95,0.00026646,2]
[354977722,1740852662107,-500.0,0.00026646,2]
[354977723,1740852662117,-500.0,0.00026646,2]
[354977724,1740852662127,-1900.21,0.00026646,2]
[354977725,1740852662136,-3068.32,0.00026646,2]
[354977726,1740852662145,-837.13,0.00026646,2]
[354977727,1740852662155,-114426.55573069,0.00026648,9]
[354977728,1740853429965,95239.90207876,0.00025,120]
[354977729,1740853429987,100000.0,0.00025,120]
[354977730,1740853430008,71019.49510897,0.00025,120]
[354977731,1740853430032,13740.60281227,0.00025,120]
[354977733,1740853537149,-1226.6667408,0.00022889,2]
[354977734,1740853537170,-159.29,0.00023704,2]
[354977735,1740853537191,-1167.39380046,0.00023704,2]
[354977736,1740853537212,-207.0315108,0.00023709,2]
[354977737,1740853537234,-300.0,0.00023713,2]
[354977738,1740853537255,-402.09484059,0.00023714,2]
[354977739,1740853541090,-265.57503474,0.00023714,2]
[354977740,1740853626114,-300.0,0.00023713,2]
[354977741,1740853626137,-71.52180941,0.00023714,2]
[354977742,1740853636116,-24160.80831526,0.00023714,2]
[354977743,1740853636137,-6871.40595689,0.00023943,2]
[354977744,1740853648145,-2827.78431688,0.00023943,2]
[354977745,1740853702247,6229.14041567,0.0002,120]
[354977746,1740853718687,155.0,0.00018,30]
[354977747,1740853721508,907.07000128,0.00023,60]
[354977748,1740853721538,482.31713041,0.0002,120]
[354977749,1740853722695,291.29986664,0.00025,120]
[354977751,1740853729426,575.18542084,0.00024,120]
[354977752,1740853729723,25038.29993844,0.0001,7]
[354977753,1740853745081,-151.0,0.00023,2]
[354977754,1740853745102,-225.50080536,0.00023943,2]
[354977755,1740853751085,-75.30892087,0.00023943,2]
[354977756,1740853751106,-292.84,0.00024,2]
[354977757,1740853751126,-410.676,0.00024027,2]
[354977758,1740853751146,-963.3522212,0.00024028,2]
[354977759,1740853751166,-814.5515333,0.0002408,2]
[354977760,1740853751187,-322.1691769,0.00024158,2]
[354977761,1740853751207,-414.9952781,0.0002423,2]
[354977762,1740853751227,-150.0,0.00024274,2]
[354977763,1740853751248,-533.64,0.00024657,2]
[354977764,1740853751269,-250.0,0.00024817,2]
[354977765,1740853751290,-416.10429196,0.00024999,2]
[354977766,1740853762092,-117.53570804,0.00024999,2]
[354977767,1740853762113,-493.62,0.00025,2]
[354977768,1740853762134,-1789.4553012,0.00025347,2]
[354977769,1740853762155,-300.0,0.00025437,2]
[354977770,1740853762176,-578.57,0.00025438,3]
[354977771,1740853762197,-289.28,0.00025438,3]
[354977772,1740853762218,-867.88,0.00025438,3]
[354977773,1740853762240,-500.0,0.00025447,2]
[354977774,1740853762260,-210.52225673,0.00025447,2]
[354977775,1740853762283,-500.0,0.00025447,2]
[354977776,1740853762306,-500.0,0.00025447,2]
[354977777,1740853762328,-500.0,0.00025447,2]
[354977778,1740853762348,-500.0,0.00025447,2]
[354977779,1740853762371,-500.0,0.00025447,2]
[354977780,1740853762392,-645.73250956,0.00025447,2]
[354977781,1740853762413,-500.0,0.00025447,2]
[354977782,1740853762436,-500.0,0.00025447,2]
[354977783,1740853762456,-500.0,0.00025447,2]
[354977784,1740853762478,-500.0,0.00025447,2]
[354977785,1740853762502,-500.0,0.00025447,2]
[354977786,1740853762524,-369.92406759,0.00025447,2]
[354977787,1740853762546,-500.0,0.00025447,2]
[354977788,1740853762570,-486.4966478,0.00025447,2]
[354977789,1740853762594,-500.0,0.00025447,2]
[354977790,1740853762621,-500.0,0.00025447,2]
[354977791,1740853762645,-500.0,0.00025447,2]
[354977792,1740853762668,-593.45987987,0.00025447,2]
[354977793,1740853762694,-500.0,0.00025447,2]
[354977794,1740853762716,-500.0,0.00025447,2]
[354977795,1740853762738,-500.0,0.00025447,2]
[354977796,1740853762761,-500.0,0.00025447,2]
[354977797,1740853762783,-500.0,0.00025447,2]
[354977798,1740853762805,-500.0,0.00025447,2]
[354977799,1740853762827,-500.0,0.00025447,2]
[354977800,1740853762857,-500.0,0.00025447,2]
[354977801,1740853762888,-500.0,0.00025447,2]
[354977802,1740853762917,-500.0,0.00025447,2]
[354977803,1740853762946,-500.0,0.00025447,2]
[354977804,1740853762976,-500.0,0.00025447,2]
[354977805,1740853763006,-171.80460401,0.00025447,2]
[354977806,1740853763034,-500.0,0.00025447,2]
[354977807,1740853763063,-500.0,0.00025447,2]
[354977808,1740853763094,-500.0,0.00025447,2]
[354977809,1740853763124,-500.0,0.00025447,2]
[354977810,1740853763152,-500.0,0.00025447,2]
[354977811,1740853763180,-500.0,0.00025447,2]
[354977812,1740853763207,-500.0,0.00025447,2]
[354977813,1740853763236,-500.0,0.00025447,2]
[354977814,1740853763264,-500.0,0.00025447,2]
[354977815,1740853763289,-500.0,0.00025447,2]
[354977816,1740853763316,-500.0,0.00025447,2]
[354977817,1740853763344,-500.0,0.00025447,2]
[354977818,1740853763374,-500.0,0.00025447,2]
[354977819,1740853763403,-500.0,0.00025447,2]
[354977820,1740853763433,-500.0,0.00025447,2]
[354977821,1740853763461,-760.05,0.00025447,2]
[354977822,1740853763488,-500.0,0.00025447,2]
[354977823,1740853763512,-1130.97,0.00025447,2]
[354977824,1740853763536,-611.23169999,0.00025447,2]
[354977825,1740853763565,-3397.06,0.00025447,2]
[354977826,1740853763596,-533.64,0.00025447,2]
[354977827,1740853763627,-533.64,0.00025447,2]
[354977828,1740853763655,-1044.02,0.00025447,2]
[354977829,1740853763683,-500.0,0.00025447,2]
[354977830,1740853763709,-11270.67,0.00025447,2]
[354977831,1740853763733,-5413.50829827,0.00025447,2]
[354977845,1740853832091,-500.0,0.00025435,2]
[354977846,1740853832101,-300.0,0.00025446,2]
[354977847,1740853832111,-1984.76170173,0.00025447,2]
[354977848,1740853832120,-500.0,0.00025447,2]
[354977849,1740853832130,-601.00457264,0.00025447,2]
[354977854,1740853837755,-5045.10542736,0.00025447,2]
[354977855,1740853837766,-500.0,0.00025447,2]
[354977856,1740853837775,-3641.03,0.00025447,2]
[354977857,1740853837785,-2376.87,0.00025447,2]
[354977858,1740853837794,-1477.1,0.00025447,2]
[354977859,1740853837804,-1000.0,0.00025447,5]
[354977860,1740853837814,-500.0,0.00025447,2]
[354977861,1740853837823,-1086.33,0.00025447,2]
[354977862,1740853837833,-1123.54,0.00025447,2]
[354977863,1740853837842,-500.0,0.00025447,2]
[354977864,1740853837851,-1238.36,0.00025447,2]
[354977865,1740853837860,-4476.44,0.00025447,2]
[354977866,1740853837870,-8034.62,0.00025447,2]
[354977867,1740853837879,-780.9,0.00025447,2]
[354977868,1740853837953,-728.38,0.00025447,2]
[354977869,1740853837965,-3030.86,0.00025447,2]
[354977870,1740853837974,-500.0,0.00025447,2]
[354977871,1740853837984,-500.0,0.00025447,2]
[354977872,1740853837994,-500.0,0.00025447,2]
[354977873,1740853838003,-500.0,0.00025447,2]
[354977874,1740853838013,-500.0,0.00025447,2]
[354977875,1740853838023,-500.0,0.00025447,2]
[354977876,1740853838032,-1381.47,0.00025447,2]
[354977877,1740853838042,-500.0,0.00025447,2]
[354977878,1740853838051,-500.0,0.00025447,2]
[354977879,1740853838061,-500.0,0.00025447,2]
[354977880,1740853838070,-500.0,0.00025447,2]
[354977881,1740853838080,-500.0,0.00025447,2]
[354977882,1740853838089,-500.0,0.00025447,2]
[354977883,1740853838098,-500.0,0.00025447,2]
[354977884,1740853838109,-500.0,0.00025447,2]
[354977885,1740853838118,-165.06590168,0.00025447,2]
[354977886,1740853838127,-500.0,0.00025447,2]
[354977887,1740853838137,-500.0,0.00025447,2]
[354977888,1740853838146,-500.0,0.00025447,2]
[354977889,1740853838157,-197.53467182,0.00025447,2]
[354977890,1740853838166,-500.0,0.00025447,2]
[354977891,1740853838175,-500.0,0.00025447,2]
[354977892,1740853838186,-400.49632264,0.00025447,2]
[354977893,1740853838195,-868.4,0.00025447,2]
[354977894,1740853838203,-500.0,0.00025447,2]
[354977895,1740853838212,-1330.63,0.00025447,2]
[354977896,1740853838221,-500.0,0.00025447,2]
[354977897,1740853838230,-500.0,0.00025447,2]
[354977898,1740853838240,-353.33760787,0.00025447,2]
[354977899,1740853838249,-500.0,0.00025447,2]
[354977900,1740853838258,-500.0,0.00025448,2]
[354977901,1740853838267,-500.0,0.00025448,2]
[354977902,1740853838277,-500.0,0.00025448,2]
[354977903,1740853838285,-500.0,0.00025448,2]
[354977904,1740853838294,-500.0,0.00025448,2]
[354977905,1740853838303,-651.22,0.00025448,2]
[354977906,1740853838313,-500.0,0.00025448,2]
[354977907,1740853838322,-500.0,0.00025448,2]
[354977908,1740853838331,-207.49057384,0.00025448,2]
[354977909,1740853838340,-500.0,0.00025448,2]
[354977910,1740853838349,-1225.87,0.00025448,2]
[354977911,1740853838359,-500.0,0.00025448,2]
[354977912,1740853838368,-500.0,0.00025448,2]
[354977913,1740853838377,-1326.07,0.00025448,2]
[354977914,1740853838386,-500.0,0.00025448,2]
[354977915,1740853838395,-248.09106201,0.00025448,2]
[354977916,1740853838406,-500.0,0.00025448,2]
[354977917,1740853838415,-500.0,0.00025448,2]
[354977918,1740853838424,-567.62,0.00025448,2]
[354977919,1740853838433,-1555.22,0.00025448,2]
[354977920,1740853838442,-500.0,0.00025448,2]
[354977921,1740853838451,-500.0,0.00025448,2]
[354977922,1740853838460,-500.0,0.00025448,2]
[354977923,1740853838469,-500.0,0.00025448,2]
[354977924,1740853838478,-500.0,0.00025448,2]
[354977925,1740853838487,-500.0,0.00025448,2]
[354977926,1740853838496,-500.0,0.00025448,2]
[354977927,1740853838505,-857.82,0.00025448,2]
[354977928,1740853838514,-500.0,0.00025448,2]
[354977929,1740853838523,-500.0,0.00025448,2]
[354977930,1740853838532,-500.0,0.00025448,2]
[354977931,1740853838542,-526.48143405,0.00025448,2]
[354977932,1740853838551,-500.0,0.00025448,2]
[354977933,1740853838561,-500.0,0.00025448,2]
[354977934,1740853838570,-984.87,0.00025448,2]
[354977935,1740853838579,-501.91751933,0.00025448,2]
[354977936,1740853838589,-500.0,0.00025448,2]
[354977937,1740853838598,-500.0,0.00025448,2]
[354977938,1740853838607,-500.0,0.00025448,2]
[354977939,1740853838617,-500.0,0.00025448,2]
[354977940,1740853838627,-500.0,0.00025448,2]
[354977941,1740853838640,-500.0,0.00025448,2]
[354977942,1740853838652,-500.0,0.00025448,2]
[354977943,1740853838661,-500.0,0.00025448,2]
[354977944,1740853838670,-500.0,0.00025448,2]
[354977945,1740853838681,-504.45,0.00025448,2]
[354977946,1740853838690,-504.45,0.00025448,2]
[354977947,1740853838700,-500.0,0.00025448,2]
[354977948,1740853838709,-1649.68,0.00025448,2]
[354977949,1740853838719,-500.0,0.00025448,2]
[354977950,1740853838729,-500.0,0.00025448,2]
[354977951,1740853838739,-575.51,0.00025448,2]
[354977952,1740853838750,-500.0,0.00025448,2]
[354977953,1740853838760,-1043.77,0.00025448,2]
[354977954,1740853838769,-505.34708335,0.00025448,2]
[354977955,1740853838779,-986.49,0.00025448,2]
[354977956,1740853838788,-520.11961642,0.00025448,2]
[354977957,1740853838797,-500.0,0.00025448,2]
[354977958,1740853838806,-500.0,0.00025448,2]
[354977959,1740853838815,-500.0,0.00025448,2]
[354977960,1740853838826,-181.23774386,0.00025448,2]
[354977961,1740853838836,-503.15627078,0.00025448,2]
[354977962,1740853838846,-2565.29,0.00025448,2]
[354977963,1740853838855,-799.53,0.00025448,2]
[354977964,1740853838864,-500.0,0.00025448,2]
[354977965,1740853838874,-500.0,0.00025448,2]
[354977966,1740853838883,-1529.85,0.00025448,2]
[354977967,1740853838892,-842.16,0.00025448,2]
[354977968,1740853838903,-1768.35,0.00025448,2]
[354977969,1740853838913,-500.0,0.00025448,2]
[354977970,1740853838922,-500.0,0.00025448,2]
[354977971,1740853838932,-500.0,0.00025448,2]
[354977972,1740853838941,-500.0,0.00025448,2]
[354977973,1740853838950,-500.0,0.00025448,2]
[354977974,1740853838959,-584.81,0.00025448,2]
[354977975,1740853838968,-941.08,0.00025448,2]
[354977976,1740853838978,-1192.56,0.00025448,2]
[354977977,1740853838987,-500.0,0.00025448,2]
[354977978,1740853838996,-500.0,0.00025448,2]
[354977979,1740853839005,-500.0,0.00025448,2]
[354977980,1740853839015,-866.58,0.00025448,2]
[354977981,1740853839024,-1492.46,0.00025448,2]
[354977982,1740853839033,-926.67,0.00025448,2]
[354977983,1740853839042,-1194.51,0.00025448,2]
[354977984,1740853839051,-500.0,0.00025448,2]
[354977985,1740853839060,-500.0,0.00025448,2]
[354977986,1740853839070,-533.64,0.00025448,2]
[354977987,1740853839079,-533.64,0.00025448,2]
[354977988,1740853839088,-533.64,0.00025448,2]
[354977989,1740853839097,-533.64,0.00025448,2]
[354977990,1740853839106,-533.64,0.00025448,2]
[354977991,1740853839115,-500.0,0.00025448,2]
[354977992,1740853839125,-533.64,0.00025448,2]
[354977993,1740853839134,-500.0,0.00025448,2]
[354977994,1740853839144,-533.64,0.00025448,2]
[354977995,1740853839156,-533.64,0.00025448,2]
[354977996,1740853839166,-533.64,0.00025448,2]
[354977997,1740853839175,-500.0,0.00025448,2]
[354977998,1740853839184,-500.0,0.00025448,2]
[354977999,1740853839193,-500.0,0.00025448,2]
[354978000,1740853839202,-500.0,0.00025448,2]
[354978001,1740853839212,-500.0,0.00025448,2]
[354978002,1740853839221,-500.0,0.00025448,2]
[354978003,1740853839233,-500.0,0.00025448,2]
[354978004,1740853839242,-500.0,0.00025448,2]
[354978005,1740853839251,-500.0,0.00025448,2]
[354978006,1740853839260,-325.02174419,0.00025448,2]
[354978007,1740853839269,-796.08,0.00025448,2]
[354978008,1740853839279,-1032.72,0.00025448,2]
[354978009,1740853839289,-500.0,0.00025448,2]
[354978010,1740853839298,-500.0,0.00025448,2]
[354978011,1740853839307,-500.0,0.00025448,2]
[354978012,1740853839316,-585.96,0.00025448,2]
[354978013,1740853839325,-585.96,0.00025448,2]
[354978014,1740853839335,-609.16,0.00025448,2]
[354978015,1740853839344,-34451.11,0.00025448,2]
[354978016,1740853839354,-578.74,0.00025448,2]
[354978017,1740853839363,-500.0,0.00025448,2]
[354978018,1740853839372,-1203.5,0.00025448,2]
[354978019,1740853839381,-500.0,0.00025448,2]
[354978020,1740853839390,-500.0,0.00025448,2]
[354978021,1740853839402,-500.0,0.00025448,2]
[354978022,1740853839415,-500.0,0.00025448,2]
[354978023,1740853839424,-1749.62,0.00025448,2]
[354978024,1740853839433,-500.0,0.00025448,2]
[354978025,1740853839443,-500.0,0.00025448,2]
[354978026,1740853839451,-500.0,0.00025448,2]
[354978027,1740853839460,-500.0,0.00025448,2]
[354978028,1740853839469,-500.0,0.00025448,2]
[354978029,1740853839478,-500.0,0.00025448,2]
[354978030,1740853839488,-856.73,0.00025448,2]
[354978031,1740853839497,-160.97737788,0.00025448,2]
[354978032,1740853839506,-4841.34,0.00025448,2]
[354978033,1740853839515,-1394.98,0.00025448,2]
[354978034,1740853839525,-973.28,0.00025448,2]
[354978035,1740853839534,-500.0,0.00025448,2]
[354978036,1740853839543,-500.0,0.00025448,2]
[354978037,1740853839552,-500.0,0.00025448,2]
[354978038,1740853839563,-537.37,0.00025448,2]
[354978039,1740853839572,-500.0,0.00025448,2]
[354978040,1740853839582,-632.74,0.00025448,2]
[354978041,1740853839591,-500.0,0.00025448,2]
[354978042,1740853839600,-674.29,0.00025448,2]
[354978043,1740853839609,-500.0,0.00025448,2]
[354978044,1740853839618,-2530.74,0.00025448,2]
[354978045,1740853839628,-4575.41,0.00025448,2]
[354978046,1740853839641,-880.15,0.00025448,2]
[354978047,1740853839655,-500.0,0.00025448,2]
[354978048,1740853839664,-500.0,0.00025448,2]
[354978049,1740853839674,-500.0,0.00025448,2]
[354978050,1740853839684,-500.0,0.00025448,2]
[354978051,1740853839693,-500.0,0.00025448,2]
[354978052,1740853839702,-500.0,0.00025448,2]
[354978053,1740853839713,-500.0,0.00025448,2]
[354978054,1740853839722,-500.0,0.00025448,2]
[354978055,1740853839731,-500.0,0.00025448,2]
[354978056,1740853839741,-500.0,0.00025448,2]
[354978057,1740853839750,-839.25,0.00025448,2]
[354978058,1740853839759,-500.0,0.00025448,2]
[354978059,1740853839768,-500.0,0.00025448,2]
[354978060,1740853839778,-500.0,0.00025448,2]
[354978061,1740853839787,-500.0,0.00025448,2]
[354978062,1740853839797,-500.0,0.00025448,2]
[354978063,1740853839807,-500.0,0.00025448,2]
[354978064,1740853839816,-500.0,0.00025448,2]
[354978065,1740853839825,-1835.55,0.00025448,2]
[354978066,1740853839834,-500.0,0.00025448,2]
[354978067,1740853839843,-500.0,0.00025448,2]
[354978068,1740853839852,-1208.98,0.00025448,2]
[354978069,1740853839862,-500.0,0.00025448,2]
[354978071,1740853839871,-500.0,0.00025448,2]
[354978072,1740853839880,-1594.16,0.00025448,2]
[354978073,1740853839890,-864.94,0.00025448,2]
[354978074,1740853839899,-500.0,0.00025448,2]
[354978075,1740853839910,-175558.17,0.00025448,2]
[354978076,1740853839919,-500.0,0.00025448,2]
[354978077,1740853839929,-500.0,0.00025448,2]
[354978078,1740853839938,-700.64,0.00025448,2]
[354978079,1740853839948,-275.79247018,0.00025449,2]
[354978080,1740853839957,-500.0,0.00025449,2]
[354978081,1740853839966,-500.0,0.00025449,2]
[354978082,1740853839975,-500.0,0.00025449,2]
[354978083,1740853839985,-560.77561442,0.00025449,2]
[354978084,1740853839994,-670.22,0.00025449,2]
[354978085,1740853840003,-500.0,0.00025449,2]
[354978086,1740853840013,-500.0,0.00025449,2]
[354978087,1740853840022,-500.0,0.00025449,2]
[354978088,1740853840031,-500.0,0.00025449,2]
[354978089,1740853840041,-500.0,0.00025449,2]
[354978090,1740853840051,-500.0,0.00025449,2]
[354978091,1740853840060,-500.0,0.00025449,2]
[354978092,1740853840069,-500.0,0.00025449,2]
[354978093,1740853840079,-500.0,0.00025449,2]
[354978094,1740853840088,-500.0,0.00025449,2]
[354978095,1740853840097,-500.0,0.00025449,2]
[354978096,1740853840106,-500.0,0.00025449,2]
[354978097,1740853840115,-626.37,0.00025449,2]
[354978098,1740853840124,-500.0,0.00025449,2]
[354978099,1740853840133,-500.0,0.00025449,2]
[354978100,1740853840142,-500.0,0.00025449,2]
[354978101,1740853840153,-500.0,0.00025449,2]
[354978102,1740853840161,-500.0,0.00025449,2]
[354978103,1740853840171,-500.0,0.00025449,2]
[354978104,1740853840180,-500.0,0.00025449,2]
[354978105,1740853840189,-551.11,0.00025449,2]
[354978106,1740853840197,-528.45,0.00025449,2]
[354978107,1740853840207,-500.0,0.00025449,2]
[354978108,1740853840216,-500.0,0.00025449,2]
[354978109,1740853840225,-500.0,0.00025449,2]
[354978110,1740853840234,-500.0,0.00025449,2]
[354978111,1740853840243,-500.0,0.00025449,2]
[354978112,1740853840253,-855.4,0.00025449,2]
[354978113,1740853840262,-510.39,0.00025449,2]
[354978114,1740853840270,-1271.81,0.00025449,2]
[354978115,1740853840279,-500.0,0.00025449,2]
[354978116,1740853840288,-631.18,0.00025449,2]
[354978117,1740853840297,-500.0,0.00025449,2]
[354978118,1740853840306,-500.0,0.00025449,2]
[354978119,1740853840316,-500.0,0.00025449,2]
[354978120,1740853840325,-500.0,0.00025449,2]
[354978121,1740853840334,-500.0,0.00025449,2]
[354978122,1740853840343,-500.0,0.00025449,2]
[354978123,1740853840351,-500.0,0.00025449,2]
[354978124,1740853840360,-500.0,0.00025449,2]